fUSD/lending_fUSD_20260116
["ID","MTS","AMOUNT","RATE_DAILY","PERIOD"]
[402194758,1768585847568,-500.0,0.00017899,2]
[402194759,1768585847578,-500.0,0.00017899,2]
[402194760,1768585847587,-568.25719724,0.00017899,2]
[402194761,1768585847596,-500.0,0.00017899,2]
[402194762,1768585847606,-25000.0,0.000179,3]
[402194763,1768585847616,-25000.0,0.000179,3]
[402194764,1768585847625,-25000.0,0.000179,3]
[402194765,1768585847634,-25000.0,0.000179,3]
[402194766,1768585847643,-25000.0,0.000179,3]
[402194767,1768585847652,-1000.0,0.000179,2]
[402194768,1768585847661,-1000.0,0.000179,2]
[402194769,1768585847671,-1000.0,0.000179,2]
[402194770,1768585847680,-25000.0,0.000179,3]
[402194771,1768585847690,-15885.62294395,0.000179,2]
[402194772,1768585847700,-335.09669416,0.000179,2]
[402194773,1768585847709,-11800.0,0.000179,6]
[402194774,1768585847719,-13108.08453336,0.000179,2]
[402194775,1768585847728,-174.68194074,0.000179,2]
[402194776,1768585847738,-741.07944102,0.000179,2]
[402194777,1768585847746,-14308.24200541,0.000179,3]
[402194778,1768585847756,-369.75010429,0.000179,3]
[402194779,1768585847765,-4320.74877889,0.000179,2]
[402194780,1768585847775,-638.43971725,0.000179,2]
[402194781,1768585847785,-4958.37372985,0.000179,2]
[402194782,1768585847795,-500.0,0.000179,2]
[402194783,1768585847804,-500.0,0.000179,2]
[402194784,1768585847813,-500.0,0.000179,2]
[402194785,1768585847823,-500.0,0.000179,2]
[402194786,1768585847832,-500.0,0.000179,2]
[402194787,1768585847841,-500.0,0.000179,2]
[402194788,1768585847850,-500.0,0.000179,2]
[402194789,1768585847859,-500.0,0.000179,2]
[402194790,1768585847868,-500.0,0.000179,2]
[402194791,1768585847877,-500.0,0.000179,2]
[402194792,1768585847887,-500.0,0.000179,2]
[402194793,1768585847899,-500.0,0.000179,2]
[402194794,1768585847907,-500.0,0.000179,2]
[402194795,1768585847916,-500.0,0.000179,2]
[402194796,1768585847925,-500.0,0.000179,2]
[402194797,1768585847935,-500.0,0.000179,2]
[402194798,1768585847943,-500.0,0.000179,2]
[402194799,1768585847952,-500.0,0.000179,2]
[402194800,1768585847961,-500.0,0.000179,2]
[402194801,1768585847970,-500.0,0.000179,2]
[402194802,1768585847978,-500.0,0.000179,2]
[402194803,1768585847988,-500.0,0.000179,2]
[402194804,1768585847997,-500.0,0.000179,2]
[402194805,1768585848006,-500.0,0.000179,2]
[402194806,1768585848016,-500.0,0.000179,2]
[402194807,1768585848025,-500.0,0.000179,2]
[402194808,1768585848034,-500.0,0.000179,2]
[402194809,1768585848043,-500.0,0.000179,2]
[402194810,1768585848052,-500.0,0.000179,2]
[402194811,1768585848061,-500.0,0.000179,2]
[402194812,1768585848070,-500.0,0.000179,2]
[402194813,1768585848079,-500.0,0.000179,2]
[402194814,1768585848089,-500.0,0.000179,2]
[402194815,1768585848099,-500.0,0.000179,2]
[402194816,1768585848108,-500.0,0.000179,2]
[402194817,1768585848118,-500.0,0.000179,2]
[402194818,1768585848129,-500.0,0.000179,2]
[402194819,1768585848139,-500.0,0.000179,2]
[402194820,1768585848149,-500.0,0.000179,2]
[402194821,1768585848160,-500.0,0.000179,2]
[402194822,1768585848169,-432.15823719,0.000179,2]
[402194823,1768585848179,-1000.0,0.00017909,2]
[402194824,1768585848189,-1000.0,0.00017918,2]
[402194825,1768585848198,-500.0,0.00017918,2]
[402194826,1768585848209,-500.0,0.00017918,2]
[402194827,1768585848217,-1032.0,0.00017918,2]
[402194828,1768585848227,-1000.0,0.00017925,2]
[402194829,1768585848236,-1000.0,0.00017932,2]
[402194830,1768585848246,-1000.0,0.00017939,2]
[402194831,1768585848256,-1000.0,0.00017942,2]
[402194832,1768585848265,-1000.0,0.00017946,2]
[402194833,1768585848275,-1000.0,0.00017961,2]
[402194834,1768585848284,-1000.0,0.00017962,2]
[402194835,1768585848293,-1000.0,0.00017963,2]
[402194836,1768585848302,-2500.0,0.00017964,2]
[402194837,1768585848312,-990.0,0.00017966,2]
[402194838,1768585848321,-1000.0,0.00017967,2]
[402194839,1768585848330,-1000.0,0.00017968,2]
[402194840,1768585848340,-1000.0,0.00017968,2]
[402194841,1768585848350,-150.0,0.00017972,2]
[402194842,1768585848360,-150.0,0.00017973,2]
[402194843,1768585848370,-150.0,0.00017973,2]
[402194844,1768585848379,-500.0,0.00017973,2]
[402194845,1768585848389,-500.0,0.00017973,2]
[402194846,1768585848398,-1032.0,0.00017973,2]
[402194847,1768585848407,-1000.0,0.00017974,2]
[402194848,1768585848417,-1000.0,0.00017981,2]
[402194849,1768585848427,-202.11,0.00017982,2]
[402194850,1768585848436,-1000.0,0.00017983,2]
[402194851,1768585848446,-530.26401253,0.0001799,2]
[402194852,1768585848456,-530.26401253,0.0001799,2]
[402194853,1768585848465,-1000.0,0.00017991,2]
[402194854,1768585848474,-1000.0,0.00017991,2]
[402194855,1768585848485,-264.42112987,0.00017999,2]
[402194856,1768585848494,-1110.78417922,0.00017999,5]
[402194857,1768585848503,-1110.78417922,0.00017999,5]
[402194858,1768585848512,-1007.5651,0.00017999,2]
[402194859,1768585848522,-283.44581229,0.00017999,2]
[402194860,1768585848531,-300.0,0.00017999,2]
[402194861,1768585848540,-666.0,0.00017999,2]
[402194862,1768585848549,-675.59670852,0.00017999,2]
[402194863,1768585848558,-300.0,0.00017999,2]
[402194864,1768585848567,-500.0,0.00017999,2]
[402194865,1768585848576,-500.0,0.00017999,2]
[402194866,1768585848586,-300.0,0.00017999,2]
[402194867,1768585848595,-500.0,0.00017999,2]
[402194868,1768585848605,-580.93128521,0.00017999,2]
[402194869,1768585848614,-666.0,0.00017999,2]
[402194870,1768585848624,-300.0,0.00017999,2]
[402194871,1768585848635,-4549684.24396501,0.00018,2]
[402194872,1768585849017,-378.9568,0.00018,2]
[402194873,1768585849463,-593.29606908,0.00018,2]
[402194874,1768585849475,-510.84799934,0.00018,2]
[402194875,1768585849486,-863.40348,0.00018,2]
[402194876,1768585849504,-1032.26637396,0.00018,2]
[402194877,1768585849516,-50372.05724941,0.00018,2]
[402194878,1768585850053,-2439.0,0.00017535,2]
[402194879,1768585850063,-2361.91142308,0.00018,2]
[402194880,1768585850074,-6382.84921514,0.00018,2]
[402194881,1768585850086,-759.62696406,0.00018,2]
[402194882,1768585850106,-819.22155975,0.00018,2]
[402194883,1768585853057,299.77,0.00030137,120]
[402194886,1768585956418,-164.0,0.0001421,2]
[402194889,1768586274202,-342.13083015,0.00014845,2]
[402194890,1768586274232,-3467.75026653,0.00014845,2]
[402194891,1768586274267,-2380.24780664,0.00014845,2]
[402194892,1768586274459,-195.0,0.00014869,2]
[402194893,1768586274488,-250.0,0.00014893,2]
[402194894,1768586274519,-195.0,0.00014908,2]
[402194895,1768586274548,-250.0,0.00014924,2]
[402194896,1768586274579,-151.0,0.00014936,2]
[402194897,1768586274608,-151.0,0.00014936,2]
[402194898,1768586274637,-151.0,0.00014936,2]
[402194899,1768586274669,-151.0,0.00014936,2]
[402194900,1768586274697,-151.0,0.00014936,2]
[402194901,1768586274726,-151.0,0.00014936,2]
[402194902,1768586274754,-151.0,0.00014936,2]
[402194903,1768586274782,-151.0,0.00014936,2]
[402194904,1768586274810,-151.0,0.00014936,2]
[402194905,1768586274838,-151.0,0.00014936,2]
[402194906,1768586274865,-151.0,0.00014936,2]
[402194907,1768586274899,-151.0,0.00014936,2]
[402194908,1768586274931,-151.0,0.00014936,2]
[402194909,1768586274960,-151.0,0.00014936,2]
[402194910,1768586274989,-151.0,0.00014936,2]
[402194911,1768586275021,-151.0,0.00014936,2]
[402194912,1768586275051,-151.0,0.00014936,2]
[402194913,1768586275080,-151.0,0.00014936,2]
[402194914,1768586275112,-151.0,0.00014936,2]
[402194915,1768586275142,-151.0,0.00014936,2]
[402194916,1768586275172,-500.0,0.00014936,2]
[402194917,1768586275202,-151.0,0.00014936,2]
[402194918,1768586275233,-378.01,0.00014936,2]
[402194919,1768586275352,-121.99,0.00014936,2]
[402194920,1768586275384,-151.0,0.00014936,2]
[402194921,1768586275416,-500.0,0.00014936,2]
[402194922,1768586275449,-500.0,0.00014936,2]
[402194923,1768586275480,-151.0,0.00014942,2]
[402194924,1768586275510,-300.0,0.00014943,2]
[402194925,1768586275540,-204.24910857,0.00014944,2]
[402194926,1768586275571,-500.91677592,0.00014944,2]
[402194927,1768586275603,-500.0,0.00014944,2]
[402194928,1768586275637,-411.81080647,0.00014944,2]
[402194929,1768586275669,-500.0,0.00014944,2]
[402194930,1768586275728,-323.44589844,0.00014944,2]
[402194931,1768586275790,-275.27406249,0.00014944,2]
[402194932,1768586275850,-500.0,0.00014944,2]
[402194933,1768586276238,-300.0,0.00014944,2]
[402194934,1768586276268,-1200.0,0.00014944,2]
[402194935,1768586276296,-300.0,0.00014944,2]
[402194936,1768586276325,-150.0,0.00014944,2]
[402194937,1768586276355,-150.0,0.00014944,2]
[402194938,1768586276394,-246.0,0.00014944,2]
[402194939,1768586277696,-1111.90678517,0.00014945,2]
[402194940,1768586279625,-579.56529285,0.00014945,2]
[402194941,1768586282057,-198.43470715,0.00014945,2]
[402194942,1768586286662,-275.0,0.00014945,2]
[402194943,1768586289314,-264.80182353,0.00014945,2]
[402194944,1768586293800,-161.80446071,0.00014945,2]
[402194945,1768586295279,-272.70300979,0.00014945,2]
[402194946,1768586298456,-182.57215667,0.00014945,2]
[402194947,1768586300255,151.0,0.00014942,2]
[402194948,1768586301219,-213.1185493,0.00014945,2]
[402194949,1768586315535,10600.0,0.000149,5]
[402194950,1768586326052,1653.08243059,0.00014845,2]
[402194951,1768586353118,151.0,0.00014942,2]
[402194952,1768586353528,358.6473,0.00014845,2]
[402194953,1768586359605,236.7828,0.00014845,2]
[402194954,1768586369551,2757.49746941,0.00014845,2]
[402194955,1768586369575,10000.01,0.00014845,2]
[402194956,1768586369598,6549.02995089,0.00014845,2]
[402194957,1768586396937,3450.98004911,0.0001465,2]
[402194958,1768586396960,6294.78995089,0.0001465,2]
[402194959,1768586401195,300.0,0.00014944,2]
[402194960,1768586401235,300.0,0.00014944,2]
[402194961,1768586401389,1200.0,0.00014944,2]
[402194962,1768586401922,150.0,0.00014944,2]
[402194963,1768586404321,448.30533893,0.00014944,2]
[402194964,1768586407452,150.0,0.00014944,2]
[402194965,1768586408408,197.7,0.00014935,2]
[402194966,1768586408639,197.7,0.00014935,2]
[402194967,1768586408801,150.0,0.00014944,2]
[402194968,1768586408883,500.0,0.00014944,2]
[402194969,1768586408928,111.51471018,0.00014944,2]
[402194970,1768586408953,176.00755466,0.00014944,2]
[402194971,1768586409033,500.0,0.00014944,2]
[402194972,1768586409170,240.22586616,0.00014944,2]
[402194973,1768586410228,2342.72,0.00014935,2]
[402194974,1768586410455,2342.72,0.00014935,2]
[402194975,1768586416271,151.0,0.00014942,2]
[402194976,1768586426948,4247.33657918,0.00014845,2]
[402194977,1768586426984,10000.01,0.00014845,2]
[402194978,1768586427010,3267.28282082,0.00014845,2]
[402194979,1768586429752,1040.44391747,0.00014845,2]
[402194980,1768586432986,2500.0,0.00014845,2]
[402194981,1768586434141,-500.0,0.00014945,2]
[402194982,1768586434354,-868.70741361,0.00014945,2]
[402194983,1768586434879,-752.305,0.00014945,2]
[402194984,1768586434941,-4481.19838731,0.00014945,2]
[402194985,1768586434988,-437.98558936,0.00014945,2]
[402194986,1768586492473,501.3862088,0.00014944,2]
[402194987,1768586494056,2690.89705291,0.00014646,2]
[402194988,1768586494081,1054.63494709,0.00014646,2]
[402194989,1768586494300,265.002,0.00014646,2]
[402194990,1768586502296,840.3356,0.00014845,2]
[402194991,1768586509185,236.7828,0.00014845,2]
[402194992,1768586513852,500.0,0.00014944,2]
[402194993,1768586514094,500.0,0.00014944,2]
[402194994,1768586514326,500.0,0.00014944,2]
[402194995,1768586521240,300.0,0.00014944,2]
[402194996,1768586526908,500.0,0.00014845,2]
[402194997,1768586535840,151.0,0.00014942,2]
[402194998,1768586540501,500.0,0.00014944,2]
[402194999,1768586540751,500.0,0.00014944,2]
[402195000,1768586546380,180.01,0.00014945,2]
[402195001,1768586548184,500.0,0.00014945,2]
[402195002,1768586575508,2715.4598,0.00014845,2]
[402195003,1768586576876,424.86467684,0.00014845,2]
[402195004,1768586581290,300.0,0.00014944,2]
[402195005,1768586582447,31.92017607,0.00014944,2]
[402195006,1768586582470,118.07982393,0.00014944,2]
[402195007,1768586582535,2500.8174,0.00014845,2]
[402195008,1768586588103,2500.0,0.00014845,2]
[402195009,1768586597687,284.0,0.00014944,2]
[402195010,1768586606250,999.0,0.00014418,3]
[402195011,1768586655970,4597.11277607,0.00014845,2]
[402195012,1768586655994,10000.01,0.00014845,2]
[402195013,1768586656018,4968.79202423,0.00014845,2]
[402195014,1768586656314,151.0,0.00014942,2]
[402195015,1768586659783,4880.21797577,0.00014418,2]
[402195016,1768586659805,10000.01,0.00014418,2]
[402195017,1768586659828,1534.79202423,0.00014418,2]
[402195018,1768586675927,500.0,0.00014845,2]
[402195019,1768586679390,442.73,0.00014561,2]
[402195020,1768586690096,150.0,0.00014445,2]
[402195021,1768586701301,1200.0,0.00014944,2]
[402195022,1768586717099,283.24311788,0.00014845,2]
[402195023,1768586735286,910.38842776,0.00014845,2]
[402195024,1768586737083,2339.0468,0.00014845,2]
[402195025,1768586754024,4174.60165436,0.00011761,2]
[402195026,1768586754051,8492.33834564,0.00011761,2]
[402195027,1768586761233,300.0,0.00014944,2]
[402195028,1768586761762,150.0,0.00014944,2]
[402195029,1768586761808,300.0,0.00014944,2]
[402195030,1768586776115,500.0,0.00014944,2]
[402195031,1768586776351,257.67165436,0.00014944,2]
[402195032,1768586776374,242.32834564,0.00014944,2]
[402195033,1768586779795,923.71300875,0.00014944,2]
[402195034,1768586780596,151.0,0.00014942,2]
[402195035,1768586804569,286.2884,0.00014845,2]
[402195036,1768586821380,300.0,0.00014944,2]
[402195037,1768586823111,2466.27,7.218e-05,2]
[402195038,1768586823337,2466.27,7.598e-05,2]
[402195039,1768586823617,2466.27,7.978e-05,2]
[402195040,1768586823836,697.87024561,8.358e-05,2]
[402195041,1768586823860,1768.39975439,8.358e-05,2]
[402195042,1768586824102,2466.27,8.738e-05,2]
[402195043,1768586824254,2466.27,9.118e-05,2]
[402195044,1768586824473,2466.27,9.498e-05,2]
[402195045,1768586824678,832.80024561,9.878e-05,2]
[402195046,1768586824710,1633.46975439,9.878e-05,2]
[402195047,1768586825057,200.0,0.00014945,2]
[402195048,1768586825137,2466.27,0.00010258,2]
[402195049,1768586825300,2466.27,0.00010638,2]
[402195050,1768586825568,2466.27,0.00011017,2]
[402195051,1768586825640,500.0,0.00014945,2]
[402195052,1768586825771,267.73024561,0.00011397,2]
[402195053,1768586826131,2198.53975439,0.00011397,2]
[402195054,1768586826196,2466.27,0.00011777,2]
[402195055,1768586826391,2466.27,0.00012157,2]
[402195056,1768586826620,2466.27,0.00012537,2]
[402195057,1768586826862,402.66024561,0.00012917,2]
[402195058,1768586826886,2063.60975439,0.00012917,2]
[402195059,1768586827097,2466.27,0.00013297,2]
[402195060,1768586827277,2466.27,0.00013677,2]
[402195061,1768586827511,2466.27,0.00014057,2]
[402195062,1768586827729,537.59024561,0.00014437,2]
[402195063,1768586828805,-1928.67975439,0.00014437,2]
[402195064,1768586830671,151.0,0.00014945,2]
[402195065,1768586831252,151.0,0.00014945,2]
[402195066,1768586831868,151.0,0.00014945,2]
[402195067,1768586841285,10700.0,0.000149,5]
[402195068,1768586857559,403.9,0.00030137,120]
[402195076,1768586921543,-300.22094409,0.0001477,2]
[402195077,1768586924182,-256.4178067,0.0001477,2]
[402195078,1768586982134,-250.0,0.00014807,2]
[402195079,1768586982158,-101.82534366,0.00014844,2]
[402195080,1768586997751,-243.715591,0.0001477,2]
[402195081,1768586997773,-69.54722206,0.00014844,2]
[402195082,1768586999990,-347.95371225,0.00014844,2]
[402195083,1768587001980,-417.52852677,0.00014844,2]
[402195084,1768587004072,-263.14519526,0.00014844,2]
[402195085,1768587004095,-150.0,0.00014844,2]
[402195086,1768587004118,-101.25419715,0.00014844,2]
[402195087,1768587005544,-198.74580285,0.00014844,2]
[402195088,1768587005568,-101.25419715,0.00014844,2]
[402195089,1768587005983,591.1801,0.00030137,120]
[402195090,1768587007015,-322.04109584,0.00014844,2]
[402195093,1768587031744,-776.70470701,0.00014844,2]
[402195094,1768587031753,-6.06386971,0.00014844,2]
[402195095,1768587031765,-293.93613029,0.00014844,2]
[402195096,1768587031775,-273.0,0.00014844,2]
[402195097,1768587031784,-3634.71910516,0.00014845,2]
[402195098,1768587031808,-893.44645654,0.00014845,2]
[402195099,1768587031819,-426.83436047,0.00014845,2]
[402195100,1768587031875,-459.25366329,0.00014845,2]
[402195101,1768587031886,-1244.12870401,0.00014845,2]
[402195102,1768587031898,-1349.61288932,0.00014845,2]
[402195103,1768587031924,-534.27263763,0.00014845,2]
[402195104,1768587031935,-35264.25718358,0.00014845,2]
[402195105,1768587031944,-18994.94483281,0.00014845,2]
[402195106,1768587031954,-205.54732387,0.00014845,2]
[402195107,1768587031963,-600.0,0.00014851,2]
[402195108,1768587031973,-2500.0,0.00014857,2]
[402195109,1768587031983,-500.0,0.00014944,2]
[402195110,1768587031993,-500.0,0.00014944,2]
[402195111,1768587032003,-500.0,0.00014944,2]
[402195112,1768587032013,-500.0,0.00014944,2]
[402195113,1768587032022,-500.0,0.00014944,2]
[402195115,1768587032032,-500.0,0.00014944,2]
[402195117,1768587032042,-500.0,0.00014944,2]
[402195119,1768587032051,-500.0,0.00014944,2]
[402195121,1768587032061,-500.0,0.00014944,2]
[402195123,1768587032070,-500.0,0.00014944,2]
[402195125,1768587032079,-271.56909193,0.00014944,2]
[402195128,1768587032088,-500.0,0.00014944,2]
[402195130,1768587032100,-500.0,0.00014944,2]
[402195133,1768587032109,-500.0,0.00014944,2]
[402195136,1768587032119,-500.0,0.00014944,2]
[402195138,1768587032129,-500.0,0.00014944,2]
[402195139,1768587032138,-500.0,0.00014944,2]
[402195140,1768587032147,-500.0,0.00014944,2]
[402195141,1768587032157,-500.0,0.00014944,2]
[402195142,1768587032166,-500.0,0.00014944,2]
[402195143,1768587032176,-500.0,0.00014944,2]
[402195144,1768587032186,-500.0,0.00014944,2]
[402195145,1768587032196,-500.0,0.00014944,2]
[402195146,1768587032209,-500.0,0.00014944,2]
[402195147,1768587032220,-500.0,0.00014944,2]
[402195148,1768587032230,-500.0,0.00014944,2]
[402195149,1768587032240,-500.0,0.00014944,2]
[402195150,1768587032251,-500.0,0.00014944,2]
[402195151,1768587032261,-500.0,0.00014944,2]
[402195152,1768587032271,-500.0,0.00014944,2]
[402195153,1768587032281,-500.0,0.00014944,2]
[402195154,1768587032290,-500.0,0.00014944,2]
[402195155,1768587032299,-500.0,0.00014944,2]
[402195156,1768587032308,-500.0,0.00014944,2]
[402195157,1768587032318,-500.0,0.00014944,2]
[402195158,1768587032327,-500.0,0.00014944,2]
[402195159,1768587032336,-500.0,0.00014944,2]
[402195160,1768587032345,-400.0,0.00014944,2]
[402195161,1768587032355,-500.0,0.00014944,2]
[402195162,1768587032364,-500.0,0.00014944,2]
[402195163,1768587032374,-500.0,0.00014944,2]
[402195165,1768587032383,-500.0,0.00014944,2]
[402195166,1768587032392,-500.0,0.00014944,2]
[402195167,1768587032401,-500.0,0.00014944,2]
[402195168,1768587032410,-151.0,0.00014945,2]
[402195169,1768587032419,-151.0,0.00014945,2]
[402195170,1768587032428,-267.28111118,0.00014945,2]
[402195171,1768587032438,-200.0,0.00014945,2]
[402195172,1768587032447,-2136.57480972,0.00014945,2]
[402195173,1768587032457,-1000.0,0.00014945,2]
[402195174,1768587032466,-195.0,0.00014945,2]
[402195175,1768587032475,-159.16048086,0.00014945,2]
[402195176,1768587032484,-300.0,0.00014945,2]
[402195177,1768587032493,-600.0,0.00014945,2]
[402195178,1768587032503,-300.0,0.00014945,2]
[402195179,1768587032512,-195.0,0.00014945,2]
[402195180,1768587032522,-200.0,0.00014945,2]
[402195181,1768587032531,-162.20158758,0.00014945,2]
[402195182,1768587032541,-530.97394883,0.00014945,2]
[402195183,1768587032553,-300.0,0.00014946,2]
[402195184,1768587032563,-325.45253772,0.00014946,2]
[402195185,1768587032573,-185.52911474,0.00014946,2]
[402195186,1768587032583,-164.675016,0.0001495,2]
[402195187,1768587032594,-500.0,0.00015044,2]
[402195188,1768587032604,-500.0,0.00015044,2]
[402195189,1768587032613,-500.0,0.00015044,2]
[402195190,1768587032622,-500.0,0.00015044,2]
[402195191,1768587032632,-500.0,0.00015044,2]
[402195192,1768587032641,-500.0,0.00015044,2]
[402195193,1768587032651,-500.0,0.00015061,2]
[402195194,1768587032660,-500.0,0.00015061,2]
[402195195,1768587032669,-500.0,0.00015061,2]
[402195196,1768587032678,-150.0,0.00015061,2]
[402195197,1768587032688,-500.0,0.00015061,2]
[402195198,1768587032697,-150.0,0.00015061,2]
[402195199,1768587032708,-500.0,0.00015116,2]
[402195200,1768587032718,-500.0,0.00015116,2]
[402195201,1768587032727,-500.0,0.00015116,2]
[402195202,1768587032737,-500.0,0.00015116,2]
[402195203,1768587032746,-500.0,0.00015116,2]
[402195204,1768587032755,-150.0,0.00015116,2]
[402195205,1768587032765,-500.0,0.00015116,2]
[402195206,1768587032774,-352.831939,0.00015171,2]
[402195207,1768587032783,-500.0,0.00015171,2]
[402195208,1768587032793,-500.0,0.00015171,2]
[402195209,1768587032802,-500.0,0.00015171,2]
[402195210,1768587032811,-500.0,0.00015171,2]
[402195211,1768587032820,-500.0,0.00015171,2]
[402195212,1768587032829,-6465.03266736,0.00015184,2]
[402195213,1768587032842,-1422.63899574,0.00015184,2]
[402195214,1768587035327,573.342,0.00030137,120]
[402195217,1768587037858,-162.20158758,0.00015184,2]
[402195218,1768587037868,-265.48697442,0.00015184,2]
[402195219,1768587037878,-11107.27316969,0.00015184,2]
[402195220,1768587037888,-500.0,0.00015223,2]
[402195221,1768587037898,-500.0,0.00015223,2]
[402195222,1768587037908,-500.0,0.00015223,2]
[402195223,1768587037918,-500.0,0.00015223,2]
[402195224,1768587037928,-500.0,0.00015223,2]
[402195225,1768587037937,-500.0,0.00015223,2]
[402195226,1768587037950,-500.0,0.00015223,2]
[402195227,1768587037960,-500.0,0.00015223,2]
[402195228,1768587037970,-150.0,0.00015225,2]
[402195229,1768587037979,-500.0,0.00015225,2]
[402195230,1768587037989,-1239.0,0.00015225,2]
[402195231,1768587037998,-500.0,0.00015225,2]
[402195232,1768587038008,-500.0,0.00015225,2]
[402195233,1768587038018,-500.0,0.00015225,2]
[402195234,1768587038027,-500.0,0.00015225,2]
[402195235,1768587038038,-500.0,0.00015225,2]
[402195236,1768587038047,-500.0,0.00015226,2]
[402195237,1768587038056,-500.0,0.00015226,2]
[402195238,1768587038066,-150.0,0.0001528,2]
[402195239,1768587038076,-1239.0,0.0001528,2]
[402195241,1768587038086,-500.0,0.0001528,2]
[402195243,1768587038095,-500.0,0.0001528,2]
[402195245,1768587038105,-500.0,0.0001528,2]
[402195247,1768587038114,-500.0,0.0001528,2]
[402195249,1768587038124,-500.0,0.0001528,2]
[402195251,1768587038135,-500.0,0.0001528,2]
[402195253,1768587038144,-500.0,0.0001528,2]
[402195256,1768587038157,-271.90992036,0.0001528,2]
[402195258,1768587038166,-500.0,0.00015287,2]
[402195260,1768587038176,-500.0,0.00015287,2]
[402195262,1768587038185,-500.0,0.00015287,2]
[402195264,1768587038195,-500.0,0.00015287,2]
[402195267,1768587038204,-500.00000017,0.00015287,2]
[402195269,1768587038218,-500.0,0.00015287,2]
[402195271,1768587038228,-500.0,0.00015287,2]
[402195273,1768587038239,-500.0,0.00015287,2]
[402195275,1768587038249,-500.0,0.00015287,2]
[402195278,1768587038261,-570.42395525,0.00015287,2]
[402195280,1768587038271,-500.0,0.00015287,2]
[402195282,1768587038282,-500.0,0.00015287,2]
[402195284,1768587038292,-500.0,0.00015287,2]
[402195286,1768587038301,-472.73300168,0.00015287,2]
[402195288,1768587038311,-500.0,0.00015287,2]
[402195290,1768587038320,-500.0,0.00015287,2]
[402195292,1768587038330,-500.0,0.00015287,2]
[402195294,1768587038339,-150.0,0.00015335,2]
[402195296,1768587038351,-1239.0,0.00015335,2]
[402195298,1768587038360,-500.0,0.00015335,2]
[402195300,1768587038370,-500.0,0.00015335,2]
[402195302,1768587038379,-500.0,0.00015335,2]
[402195304,1768587038388,-500.0,0.00015335,2]
[402195306,1768587038398,-500.0,0.00015335,2]
[402195309,1768587038408,-500.0,0.00015335,2]
[402195311,1768587038417,-500.0,0.00015335,2]
[402195313,1768587038427,-500.0,0.00015335,2]
[402195315,1768587038436,-500.0,0.00015335,2]
[402195317,1768587038445,-154.08646673,0.00015335,2]
[402195319,1768587038455,-472.0,0.00015335,2]
[402195321,1768587038464,-500.0,0.00015335,2]
[402195323,1768587038474,-500.0,0.00015335,2]
[402195325,1768587038483,-150.0,0.00015335,2]
[402195327,1768587038492,-152.38149068,0.00015335,2]
[402195329,1768587038502,-500.0,0.00015335,2]
[402195331,1768587038512,-150.0,0.00015335,2]
[402195333,1768587038522,-150.0,0.00015335,2]
[402195335,1768587038531,-500.0,0.00015335,2]
[402195337,1768587038541,-500.0,0.00015335,2]
[402195339,1768587038553,-500.0,0.00015335,2]